bitfinex-derivatives/quotes_ETHF0:USTF0_20260121
["timestamp","ask_amount","ask_price","bid_price","bid_amount"]
[1769035012962,1.27016304,3024.1,3023.1,0.14334668]
[1769035013163,0.3581031,3024.0,3023.1,0.14334668]
[1769035013365,0.00252961,3024.2,3023.1,0.14334668]
[1769035013558,1.26717404,3024.1,3023.1,0.14334668]
[1769035013758,0.35819795,3024.0,3023.3,0.93708914]
[1769035013959,0.00252961,3024.2,3023.3,0.93708914]
[1769035014162,1.2671644,3024.1,3023.3,0.93708914]
[1769035014362,0.3581968,3024.0,3023.3,0.93708914]
[1769035014559,0.00252961,3024.2,3023.3,0.93708914]
[1769035014867,1.26697033,3024.1,3023.3,0.93708914]
[1769035015057,0.35815569,3024.0,3023.3,0.93708914]
[1769035015259,0.00252961,3024.2,3023.3,0.93708914]
[1769035015463,1.26672647,3024.1,3023.3,0.93708914]
[1769035015770,0.35806972,3024.0,3023.3,0.93708914]
[1769035015970,0.00252961,3024.2,3023.3,0.93708914]
[1769035016170,0.35806733,3024.1,3023.3,0.93708914]
[1769035016469,0.35806733,3024.0,3023.3,0.93708914]
[1769035016669,0.00252961,3024.2,3023.3,0.93708914]
[1769035016871,0.35806506,3024.1,3023.3,0.93708914]
[1769035017170,0.35806506,3024.0,3023.3,0.93708914]
[1769035017370,0.00252961,3024.2,3023.3,0.93708914]
[1769035017570,0.358045,3024.1,3023.3,0.93708914]
[1769035017868,0.358045,3024.0,3023.3,0.93708914]
[1769035018065,0.00252961,3024.2,3023.3,0.93708914]
[1769035018269,0.35804497,3024.1,3023.3,0.93708914]
[1769035018466,0.00252961,3024.2,3023.3,0.93708914]
[1769035018467,0.35804497,3024.0,3023.3,0.93708914]
[1769035018665,0.00252961,3024.2,3023.3,0.93708914]
[1769035018866,0.35802842,3024.1,3023.3,0.93708914]
[1769035019063,0.35802842,3024.0,3023.3,0.93708914]
[1769035019259,0.00252961,3024.2,3023.3,0.93708914]
[1769035019467,0.35801376,3024.1,3023.3,0.93708914]
[1769035019670,0.35801376,3024.0,3023.3,0.93708914]
[1769035019872,0.00252961,3024.2,3023.3,0.93708914]
[1769035020071,0.35801416,3024.1,3023.3,0.93708914]
[1769035020272,0.35801416,3024.0,3023.3,0.93708914]
[1769035020573,0.00252961,3024.2,3023.3,0.93708914]
[1769035020774,0.35801039,3024.1,3023.3,1.07589953]
[1769035021075,0.00252961,3024.2,3023.3,1.07589953]
[1769035021371,0.35800103,3024.1,3023.3,1.07589953]
[1769035022970,0.35800103,3024.1,3022.9,1.24185922]
[1769035025373,0.35800103,3024.1,3023.2,0.93708914]
[1769035027273,0.00252961,3024.2,3023.2,0.93708914]
[1769035027470,0.35802584,3024.1,3023.2,0.93708914]
[1769035027676,0.00252961,3024.2,3023.2,1.07631922]
[1769035027877,0.35804223,3024.1,3023.3,0.13923008]
[1769035028073,0.00252961,3024.2,3023.3,0.13923008]
[1769035028379,0.00252961,3024.2,3023.6,0.13923008]
[1769035029465,0.09949051,3025.2,3023.8,1.07631922]
[1769035029674,1.26311919,3025.1,3023.8,0.93708914]
[1769035029975,1.26311919,3025.0,3023.9,0.13923008]
[1769035030164,1.26311919,3024.9,3023.9,0.13923008]
[1769035030363,0.35806202,3024.8,3023.9,0.13923008]
[1769035030566,0.00298314,3024.9,3023.9,0.13923008]
[1769035030764,0.3578832,3024.8,3023.9,0.13923008]
[1769035030970,0.00298314,3024.9,3023.9,0.13923008]
[1769035031277,0.35788353,3024.8,3023.9,0.13923008]
[1769035031465,0.00298314,3024.9,3023.9,0.13923008]
[1769035031669,0.35775036,3024.8,3023.9,0.13923008]
[1769035031869,0.00298314,3024.9,3023.9,0.13923008]
[1769035034369,0.00298314,3024.9,3023.5,0.16551]
[1769035034370,0.10653147,3024.7,3023.5,0.16551]
[1769035034879,0.00298314,3024.9,3024.1,0.93708914]
[1769035035078,0.00298314,3024.9,3023.8,1.07631922]
[1769035037782,0.00298314,3024.9,3023.9,0.13923008]
[1769035049488,0.00298314,3024.9,3024.2,0.13923008]
[1769035053187,0.00298314,3024.9,3024.4,0.93708914]
[1769035053389,0.00298314,3024.9,3024.4,0.00385236]
[1769035054992,0.00298314,3024.9,3024.4,0.14526661]
[1769035055590,0.00298314,3024.9,3024.4,0.00385236]
[1769035058488,0.00298314,3024.9,3024.4,0.14526661]
[1769035060998,0.00298314,3024.9,3024.4,0.00385236]
[1769035063400,2.3063468,3024.8,3023.3,0.16552]
[1769035063594,1.26064984,3024.7,3023.3,0.16552]
[1769035063795,1.26064984,3024.6,3023.3,0.16552]
[1769035063995,0.3580487,3024.5,3023.3,0.16552]
[1769035064202,1.04569696,3024.8,3023.3,0.16552]
[1769035064401,0.10859503,3024.6,3023.1,1.07850339]
[1769035064600,1.2732898,3024.5,3023.1,1.08094307]
[1769035064901,1.2732898,3024.4,3023.1,1.08094307]
[1769035065103,1.2732898,3024.3,3023.1,1.08094307]
[1769035065301,1.04407024,3024.5,3023.1,1.08094307]
[1769035065503,0.1069811,3024.3,3023.1,0.00243968]
[1769035065703,0.35776183,3024.2,3023.1,0.00243968]
[1769035066207,0.93708914,3023.9,3023.1,0.00243968]
[1769035066503,0.35776183,3023.8,3022.4,0.93708914]
[1769035066801,1.04405781,3023.9,3022.3,0.14141425]
[1769035066802,0.93708914,3023.6,3022.3,0.14141425]
[1769035067002,0.3575309,3023.5,3022.3,0.14141425]
[1769035067202,0.93708914,3023.6,3022.3,0.14141425]
[1769035067505,0.93708914,3023.6,3022.3,0.14440994]
[1769035070908,0.10696867,3023.9,3022.3,0.14440994]
[1769035071101,0.35629566,3023.8,3022.3,0.14440994]
[1769035071302,0.10696867,3023.9,3022.3,0.14440994]
[1769035075807,0.93769214,3024.0,3022.3,0.14440994]
[1769035080309,1.32942542,3023.9,3022.3,0.14440994]
[1769035080507,1.004702,3023.6,3022.3,0.00299569]
[1769035080708,1.26213113,3023.5,3022.3,0.00299569]
[1769035080916,1.26207616,3023.4,3021.6,0.13555253]
[1769035081102,1.26207616,3023.3,3021.6,0.13555253]
[1769035081411,1.10319214,3023.6,3021.6,0.13555253]
[1769035081606,1.26058137,3023.5,3021.6,0.13555253]
[1769035081803,1.26058137,3023.4,3021.6,0.13555253]
[1769035082001,1.26058137,3023.3,3021.6,0.13897387]
[1769035082208,1.10319214,3023.6,3021.6,0.13897387]
[1769035082509,1.26015445,3023.5,3021.6,0.13897387]
[1769035082704,1.26015445,3023.4,3021.6,0.13897387]
[1769035083011,1.26015445,3023.3,3021.6,0.13897387]
[1769035083207,0.93769214,3023.6,3021.6,0.13897387]
[1769035083506,0.05927053,3023.3,3021.6,0.13897387]
[1769035083704,0.05927053,3023.1,3021.6,0.13897387]
[1769035088318,0.90477671,3023.0,3021.6,0.13897387]
[1769035088502,0.05927053,3023.1,3021.6,0.13897387]
[1769035089313,0.90502748,3023.0,3021.6,0.13897387]
[1769035089517,0.05927053,3023.1,3021.6,0.13897387]
[1769035089712,0.90500536,3023.0,3021.6,0.13897387]
[1769035090010,0.05927053,3023.1,3021.6,0.13897387]
[1769035090202,0.90500264,3023.0,3021.6,0.13897387]
[1769035090410,0.05927053,3023.1,3021.6,0.13897387]
[1769035090608,0.9053604,3023.0,3021.6,0.13897387]
[1769035090808,0.05927053,3023.1,3021.6,0.13897387]
[1769035091114,1.26063709,3023.0,3021.6,0.13897387]
[1769035091314,0.90571459,3022.9,3021.6,0.13897387]
[1769035091518,0.32716712,3023.1,3021.6,0.13897387]
[1769035091714,1.26093563,3023.0,3021.6,0.13897387]
[1769035091915,0.90569226,3022.9,3021.6,0.13897387]
[1769035092116,0.32716712,3023.1,3021.6,0.13897387]
[1769035092315,1.26086752,3023.0,3021.6,0.13897387]
[1769035092515,1.26086752,3022.9,3021.6,0.13897387]
[1769035092814,0.90547845,3022.8,3021.6,0.13897387]
[1769035093013,0.32716712,3023.1,3021.6,0.13897387]
[1769035093318,1.26171007,3023.0,3021.6,0.13897387]
[1769035093510,1.26171007,3022.9,3021.6,0.13897387]
[1769035093712,1.26171007,3022.8,3021.6,0.13897387]
[1769035093911,0.32716712,3023.1,3021.6,0.13897387]
[1769035094115,0.90669111,3023.0,3021.6,0.13897387]
[1769035094318,1.26245875,3022.9,3021.6,0.13897387]
[1769035094615,1.26245875,3022.8,3021.6,0.13897387]
[1769035094815,0.90669111,3022.7,3021.6,0.13897387]
[1769035095015,0.00278818,3022.7,3021.6,0.13897387]
[1769035095615,0.00278818,3022.7,3021.7,0.1368478]
[1769035095920,0.00278818,3022.7,3021.7,0.3024478]
[1769035096220,0.00278818,3022.7,3021.8,0.1368478]
[1769035122749,0.35728428,3022.6,3021.8,0.1368478]
[1769035123044,0.35727324,3022.5,3021.8,0.1368478]
[1769035123243,0.00278818,3022.7,3021.8,0.1368478]
[1769035123449,1.26429539,3022.6,3021.8,0.1368478]
[1769035123645,0.35732586,3022.5,3021.8,0.1368478]
[1769035123846,0.00278818,3022.7,3021.6,0.00342134]
[1769035124049,1.26425052,3022.6,3021.6,0.00342134]
[1769035124353,0.35731318,3022.5,3021.6,0.00342134]
[1769035124651,0.35731318,3022.4,3021.6,0.00342134]
[1769035124854,0.00278818,3022.7,3021.6,0.00342134]
[1769035125150,1.26426311,3022.6,3021.6,0.00342134]
[1769035125350,1.26426311,3022.5,3021.6,0.00342134]
[1769035125552,1.26426311,3022.4,3021.6,0.00342134]
[1769035125744,1.26426311,3022.3,3021.0,0.14088567]
[1769035125951,1.26426311,3022.2,3020.5,0.14088567]
[1769035126156,1.26426311,3022.1,3020.5,0.14088567]
[1769035126352,1.26426311,3022.0,3020.5,0.14088567]
[1769035126557,1.26426311,3021.9,3020.5,0.14088567]
[1769035126743,1.26426311,3021.8,3020.5,0.14489785]
[1769035126948,1.26426311,3021.7,3020.5,0.14489785]
[1769035127149,1.26124424,3021.6,3020.5,0.14489785]
[1769035127348,0.04912739,3022.1,3020.5,0.14489785]
[1769035127558,2.19708917,3022.0,3020.5,0.14489785]
[1769035127754,0.04940123,3021.8,3020.5,0.00401218]
[1769035128052,0.98709337,3021.6,3020.0,0.14088567]
[1769035128249,0.04538905,3021.4,3019.6,0.14088567]
[1769035128447,1.30478608,3021.3,3019.6,0.14088567]
[1769035128653,1.25939703,3021.2,3019.6,0.14088567]
[1769035128952,0.93769214,3021.6,3019.6,0.14506045]
[1769035129247,0.98307638,3021.2,3019.6,0.14506045]
[1769035129847,1.25584199,3021.1,3019.6,0.14506045]
[1769035130058,0.98307638,3021.2,3019.6,0.14506045]
[1769035132057,0.04534695,3021.1,3019.6,0.14506045]
[1769035132754,0.04116758,3020.7,3019.0,0.14088567]
[1769035132961,0.93988574,3020.0,3019.0,0.14088567]
[1769035133756,0.93988574,3020.0,3019.0,0.14391788]
[1769035133757,0.94297719,3020.0,3019.0,0.14391788]
[1769035134059,0.93988574,3019.7,3019.0,0.00303221]
[1769035135255,0.94297719,3020.0,3019.0,0.00303221]
[1769035139954,0.93988574,3019.7,3019.0,0.00303221]
[1769035140159,0.93988574,3019.7,3018.5,0.14088567]
[1769035140553,0.93988574,3019.7,3018.1,0.14866439]
[1769035141262,0.93988574,3019.7,3018.1,0.15282249]
[1769035144564,0.00309145,3020.0,3018.1,0.15282249]
[1769035144565,0.93988574,3019.4,3018.1,0.15282249]
[1769035144764,0.93988574,3019.1,3018.1,0.15282249]
[1769035145569,0.93988574,3018.8,3018.1,0.0041581]
[1769035145759,0.93988574,3018.8,3017.7,0.14770203]
[1769035146661,0.93988574,3018.8,3017.7,0.15123141]
[1769035150965,0.93988574,3018.8,3015.9,3.314]
[1769035150966,0.93988574,3017.8,3016.0,0.14770203]
[1769035151265,0.93988574,3017.9,3016.8,0.14770203]
[1769035151971,0.94417673,3017.9,3016.8,0.15114933]
[1769035153968,0.00429099,3017.9,3016.8,0.15114933]
[1769035154768,0.00429099,3017.9,3016.9,0.14770203]
[1769035155076,1e-08,3017.9,3017.2,0.14770203]
[1769035158583,0.93988574,3019.1,3017.5,0.14770203]
[1769035158781,0.8945799,3019.0,3017.5,0.14770203]
[1769035159080,0.93988574,3019.1,3017.5,0.14770203]
[1769035159281,0.8946531,3019.0,3017.5,0.14770203]
[1769035159483,0.8946531,3018.9,3017.5,0.14770203]
[1769035164195,0.93988574,3018.5,3017.5,0.14770203]
[1769035164396,0.93988574,3018.5,3017.3,0.14770203]
[1769035167299,0.89932426,3018.4,3017.3,0.14770203]
[1769035167602,0.93988574,3018.5,3017.3,0.14770203]
[1769035167900,0.8995625,3018.4,3017.3,0.14770203]
[1769035168103,0.93988574,3018.5,3017.3,0.14770203]
[1769035168293,0.89512913,3018.4,3017.3,0.14770203]
[1769035168598,0.93988574,3018.5,3017.3,0.14770203]
[1769035168803,0.89542779,3018.4,3017.3,0.14770203]
[1769035168994,0.93988574,3018.5,3017.3,0.14770203]
[1769035169196,0.89541128,3018.4,3017.3,0.14770203]
[1769035169397,0.89541128,3018.3,3017.3,0.14770203]
[1769035169704,0.93988574,3018.5,3017.3,0.14770203]
[1769035170002,0.89581302,3018.4,3017.3,0.14770203]
[1769035170201,0.89581302,3018.3,3017.3,0.14770203]
[1769035170397,0.93988574,3018.5,3017.3,0.14770203]
[1769035170593,0.89587958,3018.4,3017.3,0.14770203]
[1769035170798,0.89587958,3018.3,3017.3,0.14770203]
[1769035171002,0.93988574,3018.5,3017.3,0.14770203]
[1769035171204,0.89587958,3018.4,3017.3,0.14770203]
[1769035171402,0.89587958,3018.3,3017.3,0.14770203]
[1769035171602,0.93988574,3018.5,3017.3,0.14770203]
[1769035171804,0.89615364,3018.4,3017.3,0.14770203]
[1769035172002,0.89615364,3018.3,3017.3,0.14770203]
[1769035172203,0.93988574,3018.5,3017.3,0.14770203]
[1769035172404,0.89647907,3018.4,3017.3,0.14770203]
[1769035172601,0.89647907,3018.3,3017.3,0.14770203]
[1769035172800,0.93988574,3018.5,3017.3,0.14770203]
[1769035172997,0.89647922,3018.4,3017.3,0.14770203]
[1769035173200,0.89647922,3018.3,3017.3,0.14770203]
[1769035173506,0.93988574,3018.5,3017.3,0.14770203]
[1769035173707,1.25270268,3018.4,3017.3,0.14770203]
[1769035173909,0.89686778,3018.3,3017.3,0.14770203]
[1769035174204,0.93988574,3018.5,3017.3,0.14770203]
[1769035174205,0.8973433,3018.2,3017.3,0.14770203]
[1769035174405,0.93988574,3018.5,3017.3,0.14770203]
[1769035174709,1.25337849,3018.4,3017.3,0.14770203]
[1769035174908,0.8973433,3018.3,3017.3,0.14770203]
[1769035175205,0.8973433,3018.2,3017.3,0.14770203]
[1769035175407,0.93988574,3018.5,3017.3,0.14770203]
[1769035175706,1.25387874,3018.4,3017.3,0.14770203]
[1769035175905,0.8977197,3018.3,3017.3,0.14770203]
[1769035176109,0.93988574,3017.7,3016.8,0.1447462]
[1769035176297,0.8975849,3017.6,3016.8,0.0034473]
[1769035176501,0.93988574,3017.7,3016.8,0.0034473]
[1769035176502,1.25363424,3017.5,3016.8,0.0034473]
[1769035176704,0.8975849,3017.4,3016.8,0.0034473]
[1769035177005,0.8975849,3017.3,3016.4,0.1412989]
[1769035177208,0.93988574,3017.7,3016.4,0.1412989]
[1769035177425,0.35602911,3017.6,3016.4,0.1412989]
[1769035177604,1.25330836,3017.5,3016.4,0.1412989]
[1769035177905,1.25330836,3017.4,3016.4,0.14544409]
[1769035178105,0.89727925,3017.3,3016.4,0.14544409]
[1769035178306,0.89727925,3017.2,3016.4,0.14544409]
[1769035178496,0.93988574,3017.7,3016.4,0.14544409]
[1769035178695,1.25340477,3017.6,3016.4,0.14544409]
[1769035178896,1.25340477,3017.5,3016.4,0.14544409]
[1769035179202,1.25340477,3017.4,3016.4,0.14544409]
[1769035179404,0.89742259,3017.3,3016.4,0.14544409]
[1769035179606,0.93988574,3017.7,3016.4,0.14544409]
[1769035179808,1.25322601,3017.6,3016.4,0.14544409]
[1769035180107,1.25322601,3017.5,3016.4,0.14544409]
[1769035180304,1.25322601,3017.4,3016.4,0.14544409]
[1769035180505,0.89729027,3017.3,3016.4,0.14544409]
[1769035180706,0.93988574,3017.7,3016.4,0.14544409]
[1769035180902,1.25009533,3017.6,3016.4,0.14544409]
[1769035181102,1.25009533,3017.5,3016.4,0.14544409]
[1769035181312,1.25009533,3017.4,3016.4,0.14544409]
[1769035181610,0.8940579,3017.3,3016.4,0.14544409]
[1769035181913,0.93988574,3017.7,3016.4,0.14544409]
[1769035182112,1.24985642,3017.6,3016.4,0.14544409]
[1769035182409,1.24985642,3017.5,3016.4,0.14544409]
[1769035182712,0.89390316,3017.4,3016.4,0.14544409]
[1769035183010,0.93988574,3017.7,3016.4,0.14544409]
[1769035183210,1.24972093,3017.6,3016.4,0.14544409]
[1769035183411,1.24972093,3017.5,3016.4,0.14544409]
[1769035183610,0.89380064,3017.4,3016.4,0.14544409]
[1769035183811,0.93988574,3017.7,3016.4,0.14544409]
[1769035184012,1.24954204,3017.6,3016.4,0.14544409]
[1769035184210,1.24954204,3017.5,3016.4,0.14544409]
[1769035184414,0.93988574,3017.7,3016.4,0.14544409]
[1769035184614,1.24931631,3017.6,3016.4,0.14544409]
[1769035184811,1.24931631,3017.5,3016.4,0.14544409]
[1769035185013,0.89349337,3017.4,3016.4,0.14544409]
[1769035185206,0.93988574,3017.7,3016.4,0.14544409]
[1769035185408,1.24915705,3017.6,3016.4,0.14544409]
[1769035185706,1.24915705,3017.5,3016.4,0.14544409]
[1769035185906,0.93988574,3017.4,3016.4,0.14544409]
[1769035188406,0.93988574,3017.4,3016.4,0.00414519]
[1769035191315,0.93988574,3016.8,3015.9,0.1412989]
[1769035191513,0.93988574,3017.1,3015.9,0.1412989]
[1769035191705,0.93988574,3016.5,3015.5,0.1412989]
[1769035192213,0.93988574,3016.5,3015.0,0.1412989]
[1769035192414,0.94289377,3016.5,3015.5,0.00341924]
[1769035193006,0.00300803,3016.5,3015.5,0.00341924]
[1769035194611,0.00300803,3016.5,3015.5,0.14471814]
[1769035196113,0.00300803,3016.5,3015.5,0.00341924]
[1769035199320,0.00300803,3016.5,3015.1,0.1412989]
[1769035200428,0.00300803,3016.5,3015.1,0.1440313]
[1769035200922,0.89207599,3016.4,3015.1,0.1440313]
[1769035201123,0.00300803,3016.5,3015.1,0.1440313]
[1769035201328,0.89207227,3016.4,3015.1,0.1440313]
[1769035201531,0.00300803,3016.5,3015.1,0.1440313]
[1769035201826,0.89207834,3016.4,3015.1,0.1440313]
[1769035202027,0.00300803,3016.5,3015.1,0.1440313]
[1769035202226,0.89215408,3016.4,3015.1,0.1440313]
[1769035202528,0.16889803,3016.5,3015.1,0.1440313]
[1769035202727,1.24707875,3016.4,3015.1,0.1440313]
[1769035202928,0.16889803,3016.5,3015.1,0.1440313]
[1769035203229,0.89213735,3016.4,3015.1,0.1440313]
[1769035203428,0.16889803,3016.5,3015.1,0.1440313]
[1769035203629,1.24726347,3016.4,3015.1,0.1440313]
[1769035203827,0.16889803,3016.5,3015.1,0.1440313]
[1769035204024,1.24726846,3016.4,3015.1,0.1440313]
[1769035204327,0.16889803,3016.5,3015.1,0.1440313]
[1769035204523,1.24762703,3016.4,3015.1,0.1440313]
[1769035204717,0.00300803,3016.5,3015.1,0.1440313]
[1769035205119,0.00300803,3016.5,3015.1,0.3100013]
[1769035205324,1.76627782,3017.5,3015.7,0.1385214]
[1769035205531,1.24552314,3017.4,3015.7,0.1385214]
[1769035205727,0.35539243,3017.3,3015.9,0.1385214]
[1769035205923,0.16583,3017.6,3015.9,0.1385214]
[1769035206119,1.24571825,3017.5,3015.9,0.1385214]
[1769035206428,1.24571825,3017.4,3015.9,0.1385214]
[1769035206629,0.00404688,3017.5,3015.9,0.1385214]
[1769035206823,0.89000834,3017.4,3015.9,0.1385214]
[1769035207026,0.00404688,3017.5,3015.9,0.1385214]
[1769035208924,0.00404688,3017.5,3016.3,0.3044214]
[1769035209120,1.76627782,3018.6,3016.4,0.1385214]
[1769035209323,1.24526496,3018.5,3016.4,0.1385214]
[1769035209530,1.24526496,3018.4,3016.4,0.1385214]
[1769035209725,1.24526496,3018.3,3016.5,0.1385214]
[1769035209924,1.24526496,3018.2,3016.5,0.1385214]
[1769035210124,0.00358623,3018.2,3016.5,0.1385214]
[1769035213534,1.24459363,3018.1,3016.5,0.1385214]
[1769035213832,1.24459363,3018.0,3016.5,0.1385214]
[1769035214033,1.24459363,3017.9,3016.5,0.1385214]
[1769035214224,1.24459363,3017.8,3016.5,0.1385214]
[1769035214422,0.16581,3018.1,3016.5,0.1385214]
[1769035214423,0.88950595,3017.7,3016.5,0.1385214]
[1769035214628,0.16581,3018.1,3016.5,0.1385214]
[1769035214829,1.24451434,3018.0,3016.5,0.1385214]
[1769035215035,1.24451434,3017.9,3016.5,0.1385214]
[1769035215235,1.24451434,3017.8,3016.5,0.1385214]
[1769035215533,0.88945036,3017.7,3016.5,0.1385214]
[1769035215736,0.16581,3018.1,3016.5,0.1385214]
[1769035216037,1.24451762,3018.0,3016.5,0.1385214]
[1769035216239,0.35506512,3017.9,3016.5,0.1385214]
[1769035216536,0.00358623,3018.2,3016.5,0.1385214]
[1769035216738,1.24461574,3018.1,3016.5,0.1385214]
[1769035216938,1.24461574,3018.0,3016.5,0.1385214]
[1769035217135,0.00358623,3018.2,3016.5,0.1385214]
[1769035217334,1.24455609,3018.1,3016.5,0.1385214]
[1769035217541,0.88948059,3018.0,3016.5,0.1385214]
[1769035217742,0.00358623,3018.2,3016.5,0.1385214]
[1769035218034,1.24456297,3018.1,3016.5,0.1385214]
[1769035218239,0.00358623,3018.2,3016.5,0.1385214]
[1769035218542,1.24448787,3018.1,3016.5,0.1385214]
[1769035218734,0.00358623,3018.2,3016.5,0.1385214]
[1769035219039,1.24449095,3018.1,3016.5,0.1385214]
[1769035219240,0.00358623,3018.2,3016.5,0.1385214]
[1769035219437,1.24439701,3018.1,3016.5,0.1385214]
[1769035219738,0.00358623,3018.2,3016.5,0.1385214]
[1769035220540,0.88920789,3018.1,3016.5,0.1385214]
[1769035220837,0.00358623,3018.2,3016.5,0.1385214]
[1769035221036,0.88921117,3018.1,3016.5,0.1385214]
[1769035221240,0.00358623,3018.2,3016.5,0.1385214]
[1769035224334,0.88911842,3018.1,3016.5,0.1385214]
[1769035224545,0.00358623,3018.2,3016.5,0.1385214]
[1769035225542,0.00358623,3018.2,3016.9,0.1385214]
[1769035234447,0.3558976,3018.1,3016.9,0.1385214]
[1769035234647,0.00358623,3018.2,3016.9,0.1385214]
[1769035234839,0.35594938,3018.1,3016.9,0.1385214]
[1769035235146,0.88820629,3018.0,3016.9,0.1385214]
[1769035235346,0.00358623,3018.2,3016.9,0.1385214]
[1769035235549,1.24465351,3018.1,3016.9,0.1385214]
[1769035235744,1.24465351,3018.0,3016.9,0.1385214]
[1769035235947,0.00358623,3018.2,3016.9,0.1385214]
[1769035236147,1.24465496,3018.1,3016.9,0.1385214]
[1769035236449,1.24465496,3018.0,3016.9,0.1385214]
[1769035236652,0.35644001,3017.9,3016.9,0.1385214]
[1769035236951,0.00358623,3018.2,3016.9,0.1385214]
[1769035237248,1.24490031,3018.1,3016.9,0.1385214]
[1769035237450,1.24490031,3018.0,3016.9,0.1385214]
[1769035237651,0.35650634,3017.9,3016.9,0.1385214]
[1769035237947,0.00358623,3018.2,3016.9,0.1385214]
[1769035238140,1.24514045,3018.1,3016.9,0.1385214]
[1769035238341,1.24514045,3018.0,3016.9,0.1385214]
[1769035238551,0.35657391,3017.9,3016.9,0.1385214]
[1769035238754,0.00358623,3018.2,3016.9,0.1385214]
[1769035238942,1.24596709,3018.1,3016.9,0.1385214]
[1769035239249,1.24596709,3018.0,3016.9,0.1385214]
[1769035239450,1.24606958,3017.9,3016.9,0.1385214]
[1769035239650,1.24606958,3017.8,3016.3,0.13834722]
[1769035239843,1.24606958,3017.7,3016.3,0.13834722]
[1769035240039,1.24606958,3017.6,3016.3,0.13834722]
[1769035240344,0.88925868,3017.5,3016.3,0.13834722]
[1769035240544,1.24614242,3017.4,3016.3,0.13834722]
[1769035240740,1.24614242,3017.3,3016.3,0.13834722]
[1769035240943,0.35688374,3017.2,3016.3,0.13834722]
[1769035241147,2.87312428,3017.8,3016.3,0.13834722]
[1769035241344,1.24398433,3017.7,3016.3,0.13834722]
[1769035241646,1.24398433,3017.6,3016.3,0.13834722]
[1769035241849,1.24398433,3017.5,3016.3,0.13834722]
[1769035242051,1.24398433,3017.4,3016.3,0.13834722]
[1769035242350,1.24398433,3017.3,3016.3,0.13834722]
[1769035242549,1.24398433,3017.2,3016.3,0.13834722]
[1769035242749,0.35679863,3017.1,3016.3,0.13834722]
[1769035242953,1.76627782,3017.7,3015.7,0.13834722]
[1769035243146,1.76627782,3017.5,3015.7,0.13834722]
[1769035243344,1.24354976,3017.4,3015.7,0.13834722]
[1769035243544,1.24354976,3017.3,3015.7,0.13834722]
[1769035243853,1.24354976,3017.2,3015.7,0.13834722]
[1769035244153,1.24354976,3017.1,3015.7,0.13834722]
[1769035244449,1.76627782,3017.5,3015.7,0.13834722]
[1769035244450,1.24354976,3017.0,3015.7,0.13834722]
[1769035244653,1.93211782,3017.5,3015.7,0.13834722]
[1769035244855,2.34952449,3017.4,3015.7,0.13834722]
[1769035245051,1.24265803,3017.3,3015.7,0.13834722]
[1769035245356,1.10686646,3017.4,3015.7,0.13834722]
[1769035245357,1.24265803,3017.2,3015.7,0.13834722]
[1769035245547,1.24265803,3017.1,3015.7,0.13834722]
[1769035245851,1.24265803,3017.0,3015.7,0.13834722]
[1769035246045,1.10686646,3017.4,3015.7,0.13834722]
[1769035246254,1.24208653,3017.3,3015.7,0.13834722]
[1769035246446,1.24208653,3017.2,3015.7,0.13834722]
[1769035246653,1.24208653,3017.1,3015.7,0.13834722]
[1769035246952,1.24208653,3017.0,3015.7,0.13834722]
[1769035247250,1.24131947,3016.9,3015.7,0.13834722]
[1769035247452,1.24132068,3016.8,3015.7,0.13834722]
[1769035247640,1.24130619,3016.7,3015.7,0.13834722]
[1769035247840,1.93213782,3017.2,3015.7,0.13834722]
[1769035248041,1.24126867,3017.1,3015.7,0.13834722]
[1769035248240,1.24126867,3017.0,3015.7,0.13834722]
[1769035248442,1.24126867,3016.9,3015.7,0.13834722]
[1769035248654,1.24126867,3016.8,3015.7,0.13834722]
[1769035248849,1.24126867,3016.7,3015.7,0.13834722]
[1769035249049,0.16586,3017.1,3015.7,0.13834722]
[1769035249352,1.24025212,3017.0,3015.7,0.13834722]
[1769035249546,1.24025212,3016.9,3015.7,0.13834722]
[1769035249748,1.24025212,3016.8,3015.7,0.13834722]
[1769035249949,1.24025212,3016.7,3015.7,0.13834722]
[1769035250149,0.16586,3017.1,3015.7,0.13834722]
[1769035250345,2.18073333,3017.0,3015.3,0.13834722]
[1769035250546,1.23970687,3016.9,3015.3,0.13834722]
[1769035250746,0.94102646,3017.0,3015.3,0.13834722]
[1769035250747,1.23970687,3016.8,3015.3,0.13834722]
[1769035250959,1.23970687,3016.7,3015.3,0.13834722]
[1769035251153,0.94102646,3017.0,3015.3,0.13834722]
[1769035251154,0.94102646,3016.5,3015.3,0.13834722]
[1769035251352,1.23914417,3016.4,3015.3,0.13834722]
[1769035251550,0.16588,3016.7,3015.3,0.13834722]
[1769035251753,2.18014821,3016.6,3015.3,0.13834722]
[1769035252049,1.23912175,3016.5,3015.3,0.13834722]
[1769035252254,1.23912175,3016.4,3015.3,0.13834722]
[1769035252556,0.94102646,3016.6,3015.3,0.13834722]
[1769035252757,1.23836153,3016.5,3015.3,0.13834722]
[1769035252953,1.23836153,3016.4,3015.3,0.13834722]
[1769035253154,0.94102646,3016.6,3015.3,0.13834722]
[1769035253354,1.23340904,3016.5,3015.3,0.13834722]
[1769035253552,0.94102646,3016.6,3015.3,0.13834722]
[1769035253854,1.23337476,3016.5,3015.3,0.13834722]
[1769035254056,0.94102646,3016.6,3015.3,0.13834722]
[1769035254259,0.87800292,3016.5,3015.3,0.13834722]
[1769035254556,0.16588,3016.7,3015.3,0.13834722]
[1769035254954,0.94188601,3016.8,3015.3,0.13834722]
[1769035262161,0.94188601,3016.5,3015.3,0.13834722]
[1769035265367,0.94188601,3016.8,3015.3,0.13834722]
[1769035268268,0.3562768,3016.7,3015.3,0.13834722]
[1769035268463,0.94188601,3016.8,3015.3,0.13834722]
[1769035268664,0.35627678,3016.7,3015.3,0.13834722]
[1769035268866,0.94188601,3016.8,3015.3,0.13834722]
[1769035269064,1.23258725,3016.7,3015.3,0.13834722]
[1769035269375,0.35657811,3016.6,3015.3,0.13834722]
[1769035269569,0.94188601,3016.8,3015.3,0.13834722]
[1769035269770,1.23284563,3016.7,3015.3,0.13834722]
[1769035269966,0.35654953,3016.6,3015.3,0.13834722]
[1769035270169,0.94188601,3016.8,3015.3,0.13834722]
[1769035270467,1.23334752,3016.7,3015.3,0.13834722]
[1769035270663,1.23334752,3016.6,3015.3,0.13834722]
[1769035270870,0.94188601,3016.8,3015.3,0.13834722]
[1769035271072,1.23334013,3016.7,3015.3,0.13834722]
[1769035271268,0.87666832,3016.6,3016.2,0.13429844]
[1769035271472,1.76627782,3017.6,3016.2,0.13429844]
[1769035271774,0.94188601,3017.7,3016.2,0.13429844]
[1769035271775,1.23402886,3017.5,3016.2,0.13429844]
[1769035271975,1.23402886,3017.4,3016.5,0.13429844]
[1769035272269,0.35687677,3017.3,3016.5,0.13429844]
[1769035272477,0.94188601,3018.0,3016.5,0.13429844]
[1769035272669,1.23425997,3017.9,3016.5,0.13429844]
[1769035272868,1.23425997,3017.8,3016.5,0.13429844]
[1769035273076,1.2342949,3017.7,3016.5,0.13429844]
[1769035273375,0.94188601,3018.0,3016.5,0.13429844]
[1769035273563,1.23353181,3017.9,3016.5,0.13429844]
[1769035273768,1.23353181,3017.8,3016.5,0.13429844]
[1769035273971,0.35672787,3017.7,3016.5,0.13429844]